bitfinex-derivatives/quotes_BNBF0:USTF0_20241230
["timestamp","ask_amount","ask_price","bid_price","bid_amount"]
[1735524320170,0.28572653,699.97,698.64,1.06603827]
[1735524321174,0.28572653,699.97,698.67,1.06603827]
[1735524321976,0.28572653,699.97,698.6,0.28628685]
[1735524323181,0.28572653,699.97,698.67,1.06603827]
[1735524324079,0.28572653,699.97,698.74,1.06603827]
[1735524325074,0.28572653,699.97,698.73,1.06603827]
[1735524326381,0.28572653,699.97,698.91,1.06603827]
[1735524327179,0.28572653,699.97,698.88,1.06603827]
[1735524328082,0.28572653,699.97,698.82,1.06603827]
[1735524328783,0.28572653,699.97,698.78,1.06603827]
[1735524330079,0.28572653,699.97,698.74,1.06603827]
[1735524332983,0.2631798,699.96,698.74,1.06603827]
[1735524333284,0.28572653,699.97,698.74,1.06603827]
[1735524333881,1.06413701,699.87,698.66,1.06603827]
[1735524334085,0.26320552,699.86,698.66,1.06603827]
[1735524334981,1.06413701,699.85,698.59,0.28629095]
[1735524335882,0.28572653,699.97,698.59,0.28629095]
[1735524335883,1.06413701,699.88,698.59,0.28629095]
[1735524336090,0.28578369,699.83,698.59,0.28629095]
[1735524336387,0.26322343,699.82,698.59,0.28629095]
[1735524336590,0.28579594,699.8,698.59,0.28629095]
[1735524336888,0.26322343,699.79,698.59,0.28629095]
[1735524337085,0.28580819,699.77,698.59,0.28629095]
[1735524342594,0.26323284,699.76,698.59,0.28629095]
[1735524342790,0.28582044,699.74,698.59,0.28629095]
[1735524349099,0.26323579,699.73,698.59,0.28629095]
[1735524349298,0.2858327,699.71,698.59,0.28629095]
[1735524363013,0.2858327,699.71,698.7,1.06603827]
[1735524364414,0.2858327,699.71,698.81,1.06603827]
[1735524366011,0.2858327,699.71,698.73,6.30637081]
[1735524366012,0.2858327,699.71,698.76,1.06603827]
[1735524366410,0.2858327,699.71,698.76,2.89484726]
[1735524366616,0.2858327,699.71,698.76,1.82880899]
[1735524366815,0.2858327,699.71,698.75,1.82880899]
[1735524367016,0.2858327,699.71,698.74,1.06603827]
[1735524367816,0.2858327,699.71,698.64,3.47541313]
[1735524368011,0.2858327,699.71,698.64,6.29912616]
[1735524368216,0.2858327,699.71,698.65,4.65033592]
[1735524368418,0.2858327,699.71,698.66,1.82662289]
[1735524368612,0.2858327,699.71,698.66,3.47522131]
[1735524368816,0.2858327,699.71,698.67,3.47522131]
[1735524369012,0.2858327,699.71,698.68,4.65033592]
[1735524369314,0.2858327,699.71,698.69,1.82662289]
[1735524369512,0.2858327,699.71,698.64,3.47497688]
[1735524370012,0.2858327,699.71,698.65,6.29868991]
[1735524370217,0.2858327,699.71,698.66,3.47497688]
[1735524370418,0.2858327,699.71,698.66,6.29868991]
[1735524370612,0.2858327,699.71,698.67,6.29868991]
[1735524370817,0.2858327,699.71,698.68,3.47497688]
[1735524371013,0.2858327,699.71,698.69,2.82371303]
[1735524371213,0.2858327,699.71,698.7,3.47497688]
[1735524371820,0.2858327,699.71,698.71,2.82371303]
[1735524372212,0.2858327,699.71,698.6,0.28628685]
[1735524380920,0.2858327,699.71,698.68,1.06603827]
[1735524382729,0.2858327,699.71,698.67,3.47288153]
[1735524383122,0.2858327,699.71,698.66,3.88751556]
[1735524383326,0.2858327,699.71,698.66,1.06603827]
[1735524383725,0.2858327,699.71,698.6,0.28628685]
[1735524394339,0.2858327,699.71,698.66,1.06603827]
[1735524395238,0.2858327,699.71,698.6,0.28628685]
[1735524395239,0.2858327,699.71,698.69,1.06603827]
[1735524396336,0.2858327,699.71,698.68,1.06603827]
[1735524398639,0.2858327,699.71,698.67,1.06603827]
[1735524399444,0.2858327,699.71,698.66,1.06603827]
[1735524400645,0.2858327,699.71,698.67,1.06603827]
[1735524401745,0.2858327,699.71,698.66,1.06603827]
[1735524402642,0.2858327,699.71,698.68,1.06603827]
[1735524403453,0.2858327,699.71,698.61,1.06603827]
[1735524404152,0.2858327,699.71,698.6,0.28628685]
[1735524405352,0.2858327,699.71,698.63,1.06603827]
[1735524406554,0.2858327,699.71,698.64,1.06603827]
[1735524407751,0.2858327,699.71,698.6,1.35232512]
[1735524408959,0.2858327,699.71,698.6,0.28628685]
[1735524409552,0.2858327,699.71,698.59,0.28629095]
[1735524415363,0.2858327,699.71,698.63,1.06603827]
[1735524416165,0.2858327,699.71,698.65,1.06603827]
[1735524417363,0.2858327,699.71,698.59,0.28629095]
[1735524417364,0.2858327,699.71,698.7,1.06603827]
[1735524418669,0.2858327,699.71,698.59,0.28629095]
[1735524432283,0.26333403,699.7,698.59,0.28629095]
[1735524433684,0.28584495,699.68,698.59,0.28629095]
[1735524434079,1.06413701,699.58,698.59,0.28629095]
[1735524434280,0.26333403,699.57,698.59,0.28629095]
[1735524435181,1.06413701,699.56,698.59,0.28629095]
[1735524435579,0.26333403,699.55,698.59,0.28629095]
[1735524436687,0.26333403,699.67,698.59,0.28629095]
[1735524436884,0.26333403,699.54,698.59,0.28629095]
[1735524437184,0.26333403,699.53,698.59,0.28629095]
[1735524437388,0.28591033,699.52,698.59,0.28629095]
[1735524437587,0.26333403,699.51,698.59,0.28629095]
[1735524437886,0.2859226,699.49,698.59,0.28629095]
[1735524438081,0.26333403,699.48,698.59,0.28629095]
[1735524438486,0.28593486,699.46,698.59,0.28629095]
[1735524440688,0.26343448,699.45,698.59,0.28629095]
[1735524440987,0.28594712,699.43,698.59,0.28629095]
[1735524441185,0.26343448,699.42,698.59,0.28629095]
[1735524441389,0.28595939,699.4,698.59,0.28629095]
[1735524441689,0.26343448,699.39,698.59,0.28629095]
[1735524441890,0.28596757,699.38,698.59,0.28629095]
[1735524442292,0.26343448,699.37,698.59,0.28629095]
[1735524442887,0.28597574,699.36,698.59,0.28629095]
[1735524443289,0.26346195,699.35,698.59,0.28629095]
[1735524443489,0.28598392,699.34,698.59,0.28629095]
[1735524443989,0.26346195,699.33,698.59,0.28629095]
[1735524444186,0.2859921,699.32,698.59,0.28629095]
[1735524444589,0.26346195,699.31,698.59,0.28629095]
[1735524445292,0.28600028,699.3,698.59,0.28629095]
[1735524445786,0.26346282,699.29,698.59,0.28629095]
[1735524445990,0.28600846,699.28,698.59,0.28629095]
[1735524446187,0.26346433,699.27,698.59,0.28629095]
[1735524446491,0.28601664,699.26,698.59,0.28629095]
[1735524454198,0.26343923,699.25,698.59,0.28629095]
[1735524454501,0.28602482,699.24,698.59,0.28629095]
[1735524455704,0.26344378,699.23,698.59,0.28629095]
[1735524455901,0.286033,699.22,698.59,0.28629095]
[1735524468216,0.26344314,699.21,698.59,0.28629095]
[1735524468815,0.28604118,699.2,698.59,0.28629095]
[1735524469017,0.26344314,699.19,698.59,0.28629095]
[1735524469920,1.05685391,699.15,698.59,0.28629095]
[1735524470121,0.28606573,699.14,698.59,0.28629095]
[1735524470315,0.54952568,699.14,698.59,0.28629095]
[1735524470519,0.26345995,699.13,698.59,0.28629095]
[1735524470821,1.05685391,699.09,698.59,0.28629095]
[1735524471022,0.54955024,699.08,698.59,0.28629095]
[1735524471220,0.28609438,699.07,698.59,0.28629095]
[1735524542167,1.05685391,700.12,698.59,0.28629095]
[1735524542363,0.28567347,700.1,698.59,0.28629095]
[1735524542567,0.26326731,700.09,698.59,0.28629095]
[1735524542768,0.28568571,700.07,698.59,0.28629095]
[1735524542967,0.26326731,700.06,698.59,0.28629095]
[1735524543169,0.28569796,700.04,698.59,0.28629095]
[1735524543368,0.26326731,700.03,698.59,0.28629095]
[1735524543569,0.2857102,700.01,698.59,0.28629095]
[1735524543765,0.26326731,700.0,698.59,0.28629095]
[1735524543967,0.28572244,699.98,698.59,0.28629095]
[1735524550373,0.26327817,699.97,698.59,0.28629095]
[1735524550574,0.28573469,699.95,698.59,0.28629095]
[1735524550873,0.26327817,699.94,698.59,0.28629095]
[1735524551876,0.28574694,699.92,698.59,0.28629095]
[1735524552075,0.26327817,699.91,698.59,0.28629095]
[1735524552280,0.28575919,699.89,698.59,0.28629095]
[1735524552482,0.26327817,699.88,698.59,0.28629095]
[1735524552782,0.28577144,699.86,698.59,0.28629095]
[1735524552981,0.2632973,699.85,698.59,0.28629095]
[1735524553184,0.28578369,699.83,698.59,0.28629095]
[1735524553478,0.2632973,699.82,698.59,0.28629095]
[1735524553681,0.28579594,699.8,698.59,0.28629095]
[1735524553877,0.2632973,699.79,698.59,0.28629095]
[1735524554081,0.28580819,699.77,698.59,0.28629095]
[1735524554279,0.2632973,699.76,698.59,0.28629095]
[1735524554980,0.28582044,699.74,698.59,0.28629095]
[1735524555184,0.26330378,699.73,698.59,0.28629095]
[1735524555385,0.2858327,699.71,698.59,0.28629095]
[1735524555578,0.26330378,699.7,698.59,0.28629095]
[1735524555985,0.28584495,699.68,698.59,0.28629095]
[1735524556186,0.26330378,699.67,698.59,0.28629095]
[1735524556382,0.28585721,699.65,698.59,0.28629095]
[1735524556578,0.26330378,699.64,698.59,0.28629095]
[1735524557585,0.26333827,699.63,698.59,0.28629095]
[1735524557985,0.28587355,699.61,698.59,0.28629095]
[1735524558179,0.26333827,699.6,698.59,0.28629095]
[1735524559186,0.28588581,699.58,698.59,0.28629095]
[1735524559587,0.26333827,699.57,698.59,0.28629095]
[1735524559790,0.28589807,699.55,698.59,0.28629095]
[1735524560084,0.26336378,699.54,698.59,0.28629095]
[1735524560289,0.28591033,699.52,698.59,0.28629095]
[1735524560489,0.26336378,699.51,698.59,0.28629095]
[1735524561189,0.28591033,699.52,698.59,0.28629095]
[1735524561389,0.26336803,699.5,698.59,0.28629095]
[1735524561587,0.26336803,699.49,698.59,0.28629095]
[1735524561790,0.28593077,699.47,698.59,0.28629095]
[1735524562891,0.26338785,699.46,698.59,0.28629095]
[1735524563287,0.28593077,699.47,698.59,0.28629095]
[1735524563692,0.26340622,699.46,698.59,0.28629095]
[1735524563991,0.28594304,699.44,698.59,0.28629095]
[1735524564389,0.26340622,699.43,698.59,0.28629095]
[1735524564590,0.2859553,699.41,698.59,0.28629095]
[1735524564791,0.26340622,699.4,698.59,0.28629095]
[1735524564992,0.28596757,699.38,698.59,0.28629095]
[1735524635534,0.28596757,699.38,698.71,1.06518402]
[1735524636133,1.05685391,700.3,698.71,1.06518402]
[1735524636333,0.28560004,700.28,698.71,1.06518402]
[1735524636534,0.28560004,700.28,698.75,1.06518402]
[1735524636734,0.26308481,700.27,698.75,1.06518402]
[1735524637036,0.28560004,700.28,698.75,1.06518402]
[1735524637235,0.26309077,700.27,698.75,1.06518402]
[1735524637536,0.28561228,700.25,698.75,1.06518402]
[1735524637736,0.26309077,700.24,698.69,1.06518402]
[1735524637937,0.28562451,700.22,698.69,1.06518402]
[1735524638232,0.26309077,700.21,698.69,1.06518402]
[1735524638436,0.28563675,700.19,698.74,1.06518402]
[1735524638636,0.26309077,700.18,698.74,1.06518402]
[1735524638931,0.28563675,700.19,698.74,1.06518402]
[1735524639131,0.26314616,700.18,698.74,1.06518402]
[1735524639337,0.26314616,700.18,698.67,1.06518402]
[1735524639735,0.28564899,700.16,698.67,1.06518402]
[1735524639938,0.26314616,700.15,698.67,1.06518402]
[1735524640339,0.26314616,700.15,698.59,0.28629095]
[1735524641837,0.28564899,700.16,698.59,0.28629095]
[1735524651845,1.3425029,700.16,698.59,0.28629095]
[1735524652644,0.26319102,700.15,698.59,0.28629095]
[1735524653146,1.34251514,700.13,698.59,0.28629095]
[1735524653342,0.28566939,700.11,698.59,0.28629095]
[1735524653538,0.26320827,700.1,698.59,0.28629095]
[1735524653742,0.28568163,700.08,698.59,0.28629095]
[1735524653945,0.26320827,700.07,698.59,0.28629095]
[1735524654245,0.62023517,700.58,698.59,0.28629095]
[1735524654246,0.28569387,700.05,698.59,0.28629095]
[1735524654444,0.26322907,700.04,698.59,0.28629095]
[1735524654645,0.28570612,700.02,698.59,0.28629095]
[1735524654946,0.26322907,700.01,698.59,0.28629095]
[1735524655141,1.05685391,699.91,698.59,0.28629095]
[1735524655345,0.26322907,699.9,698.59,0.28629095]
[1735524656048,0.26324583,699.89,698.59,0.28629095]
[1735524656248,0.26324583,699.88,698.59,0.28629095]
[1735524656448,0.26324583,699.87,698.59,0.28629095]
[1735524656651,1.05685391,699.81,698.59,0.28629095]
[1735524657348,1.05685391,699.93,698.59,0.28629095]
[1735524657645,0.26325112,699.92,698.59,0.28629095]
[1735524658049,0.2857551,699.9,698.59,0.28629095]
[1735524658244,0.26325112,699.89,698.59,0.28629095]
[1735524658549,0.28576735,699.87,698.59,0.28629095]
[1735524658744,0.26325112,699.86,698.59,0.28629095]
[1735524659343,0.2857796,699.84,698.59,0.28629095]
[1735524664852,0.26326097,699.83,698.59,0.28629095]
[1735524665053,0.28579185,699.81,698.59,0.28629095]
[1735524666756,0.2632764,699.8,698.59,0.28629095]
[1735524667663,0.26332191,699.79,698.59,0.28629095]
[1735524667852,0.26332191,699.8,698.59,0.28629095]
[1735524668157,0.26331968,699.79,698.59,0.28629095]
[1735524668351,0.28580819,699.77,698.59,0.28629095]
[1735524668548,0.26331968,699.76,698.59,0.28629095]
[1735524668746,0.28582044,699.74,698.59,0.28629095]
[1735524668950,0.26331968,699.73,698.59,0.28629095]
[1735524670954,0.2858327,699.71,698.59,0.28629095]
[1735524671155,1.05685391,699.66,698.59,0.28629095]
[1735524671354,0.2858613,699.64,698.59,0.28629095]
[1735524671552,0.26331968,699.63,698.59,0.28629095]
[1735524671747,0.28587355,699.61,698.59,0.28629095]
[1735524671950,0.26331968,699.6,698.59,0.28629095]
[1735524672854,0.28588581,699.58,698.59,0.28629095]
[1735524673155,0.26341745,699.57,698.59,0.28629095]
[1735524675252,0.28589807,699.55,698.59,0.28629095]
[1735524678259,0.26347527,699.54,698.59,0.28629095]
[1735524679264,0.28591033,699.52,698.59,0.28629095]
[1735524679460,0.26347527,699.51,698.59,0.28629095]
[1735524680059,0.28591033,699.52,698.59,0.28629095]
[1735524680254,0.26348266,699.5,698.59,0.28629095]
[1735524680459,0.26348266,699.49,698.59,0.28629095]
[1735524680659,0.28593077,699.47,698.59,0.28629095]
[1735524680858,0.26348266,699.46,698.59,0.28629095]
[1735524681058,0.28594304,699.44,698.59,0.28629095]
[1735524681261,0.26348266,699.43,698.59,0.28629095]
[1735524682062,0.2859553,699.41,698.59,0.28629095]
[1735524682263,0.26348266,699.4,698.59,0.28629095]
[1735524682461,0.2859553,699.41,698.59,0.28629095]
[1735524682658,0.2634966,699.4,698.59,0.28629095]
[1735524684364,0.2634966,699.4,697.91,0.2865699]
[1735524684965,0.26349181,699.39,697.91,0.2865699]
[1735524685166,0.26349181,699.38,697.91,0.2865699]
[1735524685367,0.26349181,699.37,697.91,0.2865699]
[1735524685563,0.26349181,699.36,697.91,0.2865699]
[1735524685767,0.28598392,699.34,697.91,0.2865699]
[1735524685970,0.26349181,699.33,697.91,0.2865699]
[1735524686569,0.28598392,699.34,697.91,0.2865699]
[1735524690568,0.26344354,699.33,697.91,0.2865699]
[1735524690972,0.28599619,699.31,697.91,0.2865699]
[1735524691173,0.26344354,699.3,697.91,0.2865699]
[1735524691369,0.28600846,699.28,697.91,0.2865699]
[1735524691773,0.26344668,699.27,697.91,0.2865699]
[1735524691972,0.28600846,699.28,697.91,0.2865699]
[1735524695072,0.26343762,699.27,697.91,0.2865699]
[1735524695275,0.28602073,699.25,697.91,0.2865699]
[1735524695477,0.26343762,699.24,697.91,0.2865699]
[1735524696380,0.286033,699.22,697.91,0.2865699]
[1735524696580,0.26343762,699.21,697.91,0.2865699]
[1735524697375,0.54947489,699.2,697.91,0.2865699]
[1735524697581,0.54947899,699.19,697.91,0.2865699]
[1735524697782,0.54948308,699.18,697.91,0.2865699]
[1735524697984,0.26343371,699.17,697.91,0.2865699]
[1735524698283,0.28606164,699.15,697.91,0.2865699]
[1735524698581,0.26343371,699.14,697.91,0.2865699]
[1735524698882,0.28607392,699.12,697.91,0.2865699]
[1735524699274,0.26348437,699.11,697.91,0.2865699]
[1735524699676,0.26349605,699.1,697.91,0.2865699]
[1735524699879,0.26349605,699.09,697.91,0.2865699]
[1735524700076,0.26349605,699.08,697.91,0.2865699]
[1735524700274,0.26349605,699.11,697.91,0.2865699]
[1735524700478,0.26349605,699.1,697.91,0.2865699]
[1735524700680,0.26349605,699.09,697.91,0.2865699]
[1735524700981,0.26349605,699.08,697.91,0.2865699]
[1735524701281,0.28609847,699.06,697.91,0.2865699]
[1735524701482,0.26349605,699.05,697.91,0.2865699]
[1735524701678,0.28611075,699.03,697.91,0.2865699]
[1735524701880,0.26349605,699.02,697.91,0.2865699]
[1735524702077,0.28611075,699.03,697.91,0.2865699]
[1735524702274,0.28612303,699.0,697.91,0.2865699]
[1735524702480,0.26352375,698.99,697.91,0.2865699]
[1735524702676,0.28613531,698.97,697.91,0.2865699]
[1735524703784,0.2635271,698.96,697.91,0.2865699]
[1735524704082,0.2861435,698.95,697.91,0.2865699]
[1735524755808,1.05685391,699.37,697.91,0.2865699]
[1735524756015,0.28597574,699.36,697.91,0.2865699]
[1735524756216,0.28597574,699.36,697.91,1.35175392]
[1735524756707,0.28597574,699.36,697.92,0.28656579]
[1735524757108,0.28597574,699.36,697.93,1.06518402]
[1735524758318,0.28597574,699.36,697.92,0.28656579]
[1735524763117,0.28597574,699.36,697.96,1.06518402]
[1735524764218,0.28597574,699.36,697.93,1.06518402]
[1735524764418,0.28597574,699.36,697.93,4.54746931]
[1735524764615,0.28597574,699.36,697.94,3.48228529]
[1735524765012,0.28597574,699.36,697.95,2.828236]
[1735524765217,0.28597574,699.36,697.96,3.48228529]
[1735524765615,0.28597574,699.36,697.97,2.828236]
[1735524765819,0.28597574,699.36,697.98,3.48228529]
[1735524766022,0.28597574,699.36,697.99,2.828236]
[1735524766323,0.28597574,699.36,698.0,3.48228529]
[1735524766722,0.28597574,699.36,698.01,2.828236]
[1735524766919,0.28597574,699.36,698.02,1.83044052]
[1735524767321,0.28597574,699.36,697.99,1.83044052]
[1735524768020,0.28597574,699.36,697.96,1.83044052]
[1735524768621,0.28597574,699.36,697.92,0.28656579]
[1735524777932,0.28597574,699.36,698.16,1.06518402]
[1735524779033,0.28597574,699.36,698.13,1.06518402]
[1735524779934,0.28597574,699.36,698.15,1.06518402]
[1735524781935,0.28597574,699.36,698.19,1.06518402]
[1735524784238,0.28597574,699.36,698.16,1.82904506]
[1735524784239,0.28597574,699.36,698.17,1.06518402]
[1735524784830,0.28597574,699.36,698.23,1.06518402]
[1735524786433,0.28597574,699.36,698.24,1.06518402]
[1735524787540,0.28597574,699.36,698.29,1.06518402]
[1735524788939,0.28597574,699.36,698.31,1.06518402]
[1735524789933,0.28597574,699.36,698.36,1.06518402]
[1735524791040,0.28597574,699.36,698.31,1.06518402]
[1735524791738,0.28597574,699.36,698.32,1.06518402]
[1735524792736,0.28597574,699.36,698.36,1.06518402]
[1735524794536,0.28597574,699.36,698.33,1.06518402]
[1735524795538,0.28597574,699.36,698.31,1.06518402]
[1735524797246,0.28597574,699.36,698.18,6.29357953]
[1735524797247,0.28597574,699.36,698.33,1.06518402]
[1735524798843,0.28597574,699.36,698.27,1.06518402]
[1735524799945,0.28597574,699.36,698.17,1.06518402]
[1735524801148,0.28597574,699.36,698.13,1.06518402]
[1735524801447,0.28597574,699.36,698.13,3.8859891]
[1735524801646,0.28597574,699.36,698.14,1.82636204]
[1735524802049,0.28597574,699.36,698.13,1.06518402]
[1735524803445,0.28597574,699.36,698.12,1.06518402]
[1735524804351,0.28597574,699.36,698.14,1.06518402]
[1735524805051,0.28597574,699.36,698.15,1.06518402]
[1735524806345,0.28597574,699.36,698.22,1.06518402]
[1735524807250,0.28597574,699.36,698.23,1.06518402]
[1735524808345,0.28597574,699.36,698.2,1.06518402]
[1735524809953,0.28597574,699.36,698.1,1.06518402]
[1735524810954,0.28597574,699.36,698.07,1.06518402]
[1735524812053,0.28597574,699.36,698.02,1.06518402]
[1735524813157,0.28597574,699.36,697.96,1.06518402]
[1735524813450,0.28597574,699.36,697.96,5.72988526]
[1735524813755,0.28597574,699.36,697.96,1.06518402]
[1735524813951,0.28597574,699.36,697.94,1.06518402]
[1735524814255,0.26339919,699.35,697.94,1.06518402]
[1735524814555,0.28597574,699.36,697.94,1.06518402]
[1735524814556,0.26340843,699.34,697.94,1.06518402]
[1735524814850,0.2859921,699.32,697.94,1.06518402]
[1735524815054,0.26340843,699.31,697.94,1.06518402]
[1735524815248,0.28600437,699.29,697.94,1.06518402]
[1735524815453,0.28600437,699.29,697.93,6.3207201]
[1735524815654,0.28600437,699.29,697.94,3.48811933]
[1735524816049,0.28600437,699.29,697.95,2.83260077]
[1735524816255,0.26340683,699.28,697.96,1.83346971]
[1735524816654,0.28601664,699.26,697.96,1.83346971]
[1735524817155,0.28601664,699.26,697.93,1.83370782]
[1735524817356,0.28601664,699.26,697.92,3.11916656]
[1735524817754,0.26342436,699.25,697.92,0.28656579]
[1735524818357,0.26342436,699.25,697.91,0.2865699]
[1735524819257,0.28602891,699.23,697.91,0.2865699]
[1735524819556,0.2634477,699.22,697.91,0.2865699]
[1735524819749,0.28604118,699.2,697.91,0.2865699]
[1735524820355,0.26344739,699.19,697.91,0.2865699]
[1735524820552,0.28605346,699.17,697.91,0.2865699]
[1735524835260,0.28605346,699.17,697.91,1.35175392]
[1735524836061,0.28605346,699.17,697.91,0.2865699]
[1735524845979,0.28605346,699.17,697.92,1.06518402]
[1735524846979,0.28605346,699.17,697.91,1.35175392]
[1735524847680,0.28605346,699.17,697.91,0.2865699]
[1735524851074,0.28605346,699.17,698.03,1.07216899]
[1735524852082,0.28605346,699.17,697.99,1.07216899]
[1735524853675,0.28605346,699.17,697.97,1.07216899]
[1735524854775,0.28605346,699.17,698.04,1.07216899]
[1735524856078,0.28605346,699.17,698.16,1.07216899]
[1735524857678,0.28605346,699.17,698.17,1.07216899]
[1735524858581,0.28605346,699.17,698.14,1.07216899]
[1735524859679,0.28605346,699.17,698.13,1.07216899]
[1735524861284,0.28605346,699.17,698.14,1.07216899]
[1735524862082,0.28605346,699.17,698.18,1.07216899]
[1735524863489,0.28605346,699.17,698.17,1.07216899]
[1735524864788,0.28605346,699.17,698.16,1.07216899]
[1735524865489,0.28605346,699.17,698.16,3.90826673]
[1735524865786,0.28605346,699.17,698.16,1.07216899]
[1735524865988,0.28605346,699.17,698.17,1.07216899]
[1735524866885,0.28605346,699.17,698.12,1.07216899]
[1735524867287,0.28605346,699.17,698.12,2.90887663]
[1735524867483,0.28605346,699.17,698.13,3.49416201]
[1735524867685,0.28605346,699.17,698.14,2.83764663]
[1735524867990,0.28605346,699.17,698.15,1.83670764]
[1735524868388,0.28605346,699.17,698.15,4.67435427]
[1735524868590,0.28605346,699.17,698.16,1.83670764]
[1735524868790,0.28605346,699.17,698.16,3.49418716]
[1735524868991,0.28605346,699.17,698.17,2.83764663]
[1735524869192,0.28605346,699.17,698.18,1.83670764]
[1735524869593,0.28605346,699.17,698.16,3.49425478]
[1735524869794,0.28605346,699.17,698.15,2.83764663]
[1735524869989,0.28605346,699.17,698.14,1.07216899]
[1735524870289,0.28605346,699.17,698.13,1.07216899]
[1735524871589,0.28605346,699.17,698.04,1.07216899]
[1735524872792,0.28605346,699.17,697.91,1.35873889]
[1735524873996,0.28605346,699.17,697.91,0.2865699]
[1735524875199,0.28605346,699.17,697.91,2.12409334]
[1735524875400,0.28605346,699.17,697.91,0.2865699]
[1735524877203,0.28605346,699.17,697.93,1.07216899]
[1735524878304,0.28605346,699.17,697.91,0.2865699]
[1735524884205,0.26351918,699.16,697.91,0.2865699]
[1735524888608,0.28606573,699.14,697.91,0.2865699]
[1735524888913,0.26351918,699.13,697.91,0.2865699]
[1735524889207,0.28607801,699.11,697.91,0.2865699]
[1735524891104,0.26355813,699.1,697.91,0.2865699]
[1735524891308,0.28609029,699.08,697.91,0.2865699]
[1735524894512,0.26356773,699.07,697.91,0.2865699]
[1735524895108,0.28610256,699.05,697.91,0.2865699]
[1735524895312,0.26356082,699.04,697.91,0.2865699]
[1735524895611,0.28611484,699.02,697.91,0.2865699]
[1735524895916,0.26356082,699.01,697.91,0.2865699]
[1735524896415,0.28612712,698.99,697.91,0.2865699]
[1735524896615,0.26356082,698.98,697.91,0.2865699]
[1735524896809,0.2861394,698.96,697.91,0.2865699]
[1735524897211,0.26359024,698.95,697.91,0.2865699]
[1735524897408,0.28615168,698.93,697.91,0.2865699]
[1735524898517,0.26360273,698.92,697.91,0.2865699]
[1735524898816,0.28616397,698.9,697.91,0.2865699]
[1735524900518,0.26360473,698.89,697.91,0.2865699]
[1735524901316,0.28617625,698.87,697.91,0.2865699]
[1735524901514,0.26360473,698.86,697.91,0.2865699]
[1735524901918,0.28618854,698.84,697.91,0.2865699]
[1735524902113,0.26360473,698.83,697.91,0.2865699]
[1735524902311,0.28620082,698.81,697.91,0.2865699]
[1735524902716,0.26362183,698.8,697.91,0.2865699]
[1735524904219,0.26366441,698.79,697.91,0.2865699]
[1735524904416,0.26366441,698.78,697.91,0.2865699]
[1735524904615,0.26372353,698.77,697.91,0.2865699]
[1735524904819,0.26372353,698.76,697.91,0.2865699]
[1735524905018,0.26372353,698.75,697.91,0.2865699]
[1735524905218,0.26372353,698.74,697.91,0.2865699]
[1735524905416,0.26372353,698.73,697.91,0.2865699]
[1735524905621,0.28624178,698.71,697.91,0.2865699]
[1735524906216,0.26372101,698.7,697.91,0.2865699]
[1735524906417,0.28624998,698.69,697.91,0.2865699]
[1735524906917,0.26372203,698.68,697.91,0.2865699]
[1735524907221,0.28625817,698.67,697.91,0.2865699]
[1735524907423,0.26372203,698.66,697.91,0.2865699]
[1735524908020,0.28625817,698.67,697.91,0.2865699]
[1735524909425,0.26370166,698.66,697.91,0.2865699]
[1735524909723,0.52741,698.66,697.91,0.2865699]
[1735524909921,0.26370834,698.65,697.91,0.2865699]
[1735524911628,0.28627046,698.64,697.91,0.2865699]
[1735524911927,0.26367122,698.63,697.91,0.2865699]
[1735524912128,0.28627866,698.62,697.91,0.2865699]
[1735524912721,0.26366436,698.61,697.91,0.2865699]
[1735524913430,0.28628685,698.6,697.91,0.2865699]
[1735524914430,0.2636667,698.59,697.91,0.2865699]
[1735524914823,0.28629505,698.58,697.91,0.2865699]
[1735524915428,0.26367519,698.57,697.91,0.2865699]
[1735524915630,0.28630325,698.56,697.91,0.2865699]
[1735524957353,1.06363313,699.12,697.91,0.2865699]
[1735524957652,0.28607801,699.11,697.91,0.2865699]
[1735524976163,0.28607801,699.11,697.91,1.35873889]
[1735524977366,0.28607801,699.11,697.91,0.2865699]
[1735524979362,0.28607801,699.11,697.94,1.07216899]
[1735524981461,0.28607801,699.11,697.94,7.38692517]
[1735524981661,0.28607801,699.11,697.95,3.48491427]
[1735524981868,0.28607801,699.11,697.94,3.9020109]
[1735524981869,0.28607801,699.11,697.94,1.07216899]
[1735524982069,0.28607801,699.11,698.0,1.07216899]
[1735524983164,0.28607801,699.11,697.92,1.07216899]
[1735524984569,0.28607801,699.11,697.91,0.2865699]
[1735524995269,0.28607801,699.11,697.92,0.28656579]
[1735524997073,0.28607801,699.11,698.17,1.06939137]
[1735524998270,0.28607801,699.11,698.08,1.06939137]
[1735524999477,0.28607801,699.11,698.04,1.06939137]
[1735525000579,0.28607801,699.11,698.02,1.06939137]
[1735525001878,0.28607801,699.11,698.01,1.06939137]
[1735525003078,0.28607801,699.11,697.98,1.06939137]
[1735525004176,0.28607801,699.11,697.92,0.28656579]
[1735525006984,0.28607801,699.11,697.92,1.35656268]
[1735525007482,0.28607801,699.11,697.92,0.28656579]
[1735525021397,0.28607801,699.11,697.82,1.06999689]
[1735525021702,0.28607801,699.11,697.12,1.06999689]
[1735525022393,0.28607801,699.11,696.03,2.18457698]
[1735525022394,0.28607801,699.11,697.2,1.06999689]
[1735525023493,0.28607801,699.11,697.21,1.06999689]
[1735525024600,0.28607801,699.11,697.22,1.06999689]
[1735525026102,0.28607801,699.11,697.2,1.06999689]